fUSD/lending_fUSD_20241110
["ID","MTS","AMOUNT","RATE_DAILY","PERIOD"]
[341763662,1731217838622,-71010.29187968,0.00014835,2]
[341763663,1731217838632,-248.78712101,0.00014835,2]
[341763664,1731217838644,-25782.13888947,0.00014835,2]
[341763665,1731217838660,-601.58324081,0.00014836,2]
[341763666,1731217838673,-601.58324081,0.00014837,2]
[341763667,1731217838683,-719443.1770785,0.00014839,2]
[341763668,1731217838692,-25782.13888947,0.00014839,2]
[341763669,1731217838702,-12700.67822951,0.00014839,2]
[341763670,1731217838712,-25782.13888947,0.0001484,2]
[341763672,1731217838721,-719443.1770785,0.00014843,2]
[341763674,1731217838731,-719443.1770785,0.00014846,2]
[341763675,1731217838740,-25782.13888947,0.00014846,2]
[341763677,1731217838750,-3928.05746359,0.00014847,2]
[341763679,1731217838759,-601.58324081,0.00014847,2]
[341763681,1731217838769,-298.59022593,0.00014849,2]
[341763683,1731217838778,-500.0,0.00014873,2]
[341763685,1731217838787,-500.0,0.00014873,2]
[341763687,1731217838796,-510.0489,0.00014888,2]
[341763689,1731217838805,-416.44843035,0.00014895,2]
[341763691,1731217838814,-500.0,0.00014895,2]
[341763693,1731217838824,-500.0,0.00014895,2]
[341763695,1731217838834,-180.38947679,0.00014895,2]
[341763697,1731217838844,-500.0,0.00014895,2]
[341763699,1731217838854,-500.0,0.00014895,2]
[341763701,1731217838864,-500.0,0.00014895,2]
[341763703,1731217838874,-463.28861263,0.00014895,2]
[341763705,1731217838884,-1428.28,0.00014896,2]
[341763707,1731217838893,-4639.87,0.00014896,2]
[341763709,1731217838903,-5109.98,0.00014896,2]
[341763711,1731217838912,-281.90793489,0.00014896,2]
[341763713,1731217838921,-500.0,0.00014896,2]
[341763715,1731217838931,-305.99332932,0.00014896,2]
[341763717,1731217838940,-500.0,0.00014896,2]
[341763719,1731217838950,-500.0,0.00014896,2]
[341763721,1731217838959,-500.0,0.00014896,2]
[341763723,1731217838968,-1560.41,0.00014896,2]
[341763725,1731217838978,-500.0,0.00014896,2]
[341763727,1731217838987,-30813.63,0.00014896,2]
[341763729,1731217838996,-500.0,0.00014896,2]
[341763731,1731217839005,-500.0,0.00014896,2]
[341763733,1731217839014,-9837.99,0.00014896,2]
[341763735,1731217839023,-3942.14,0.00014896,2]
[341763737,1731217839032,-12414.0,0.00014896,2]
[341763739,1731217839041,-500.0,0.00014896,2]
[341763741,1731217839050,-5103.31,0.00014896,2]
[341763743,1731217839060,-3772.96,0.00014896,2]
[341763745,1731217839069,-6520.86,0.00014896,2]
[341763747,1731217839079,-1515.14,0.00014896,2]
[341763749,1731217839088,-1245.23,0.00014896,2]
[341763751,1731217839099,-500.0,0.00014896,2]
[341763753,1731217839108,-500.0,0.00014896,2]
[341763755,1731217839117,-2644.86,0.00014896,2]
[341763757,1731217839127,-6992.88,0.00014896,2]
[341763759,1731217839139,-5134.12,0.00014896,2]
[341763761,1731217839148,-830.17,0.00014896,2]
[341763763,1731217839157,-2354.21,0.00014896,2]
[341763765,1731217839167,-1342.33,0.00014896,2]
[341763767,1731217839176,-649.73,0.00014896,2]
[341763769,1731217839186,-649.73,0.00014896,2]
[341763771,1731217839195,-718.97,0.00014896,2]
[341763773,1731217839204,-1418.33,0.00014896,2]
[341763775,1731217839215,-500.0,0.00014896,2]
[341763777,1731217839225,-500.0,0.00014896,2]
[341763779,1731217839235,-924.74,0.00014896,2]
[341763781,1731217839244,-924.74,0.00014896,2]
[341763783,1731217839253,-37789.07,0.00014896,2]
[341763785,1731217839263,-1049.33,0.00014896,2]
[341763787,1731217839273,-3669.81,0.00014896,2]
[341763789,1731217839282,-3669.81,0.00014896,2]
[341763791,1731217839291,-3290.34115837,0.00014896,2]
[341763918,1731217840460,-503.598,0.00014896,2]
[341763920,1731217840472,-12.03084163,0.00014896,2]
[341763922,1731217840482,-530.88915837,0.00014896,2]
[341763925,1731217840493,-377.75084163,0.00014896,2]
[341763927,1731217840502,-500.0,0.00014896,2]
[341763929,1731217840511,-500.0,0.00014896,2]
[341763931,1731217840520,-150.111014,0.00014897,2]
[341763933,1731217840529,-150.111014,0.00014897,2]
[341763935,1731217840539,-150.111014,0.00014897,2]
[341763937,1731217840549,-150.111014,0.00014897,2]
[341763939,1731217840558,-150.111014,0.00014897,2]
[341763940,1731217840568,-150.111014,0.00014897,2]
[341763943,1731217840577,-150.111014,0.00014897,2]
[341763945,1731217840586,-150.111014,0.00014897,2]
[341763946,1731217840596,-150.111014,0.00014897,2]
[341763948,1731217840606,-150.111014,0.00014897,2]
[341763949,1731217840615,-150.111014,0.00014897,2]
[341763950,1731217840625,-150.111014,0.00014897,2]
[341763951,1731217840635,-150.111014,0.00014897,2]
[341763952,1731217840645,-500.0,0.00014897,2]
[341763953,1731217840661,-500.0,0.00014897,2]
[341763954,1731217840670,-1550.85,0.00014897,2]
[341763955,1731217840679,-1550.85,0.00014897,2]
[341763956,1731217840688,-500.0,0.00014897,2]
[341763958,1731217840698,-500.0,0.00014897,2]
[341763960,1731217840708,-500.0,0.00014897,2]
[341763962,1731217840717,-500.0,0.00014897,2]
[341763964,1731217840727,-500.0,0.00014897,2]
[341763966,1731217840736,-500.0,0.00014897,2]
[341763968,1731217840746,-500.0,0.00014897,2]
[341763970,1731217840755,-500.0,0.00014897,2]
[341763972,1731217840765,-500.0,0.00014897,2]
[341763974,1731217840775,-500.0,0.00014897,2]
[341763976,1731217840784,-1132.96,0.00014897,2]
[341763978,1731217840793,-1132.96,0.00014897,2]
[341763980,1731217840803,-517.55253838,0.00014897,2]
[341763982,1731217840812,-189.89942097,0.00014897,2]
[341763984,1731217840821,-500.0,0.00014897,2]
[341763986,1731217840831,-2839.99,0.00014897,2]
[341763988,1731217840840,-271.62874328,0.00014897,2]
[341763990,1731217840850,-2839.99,0.00014897,2]
[341763992,1731217840859,-500.0,0.00014897,2]
[341763994,1731217840869,-500.0,0.00014897,2]
[341763996,1731217840878,-500.0,0.00014897,2]
[341763998,1731217840888,-362.27831157,0.00014897,2]
[341764000,1731217840897,-500.0,0.00014897,2]
[341764002,1731217840906,-500.0,0.00014897,2]
[341764004,1731217840915,-500.0,0.00014897,2]
[341764006,1731217840925,-500.0,0.00014897,2]
[341764008,1731217840934,-500.0,0.00014897,2]
[341764010,1731217840945,-500.0,0.00014897,2]
[341764012,1731217840954,-500.0,0.00014897,2]
[341764014,1731217840963,-500.0,0.00014897,2]
[341764016,1731217840972,-500.0,0.00014897,2]
[341764018,1731217840982,-500.0,0.00014897,2]
[341764020,1731217840992,-500.0,0.00014897,2]
[341764022,1731217841001,-500.0,0.00014897,2]
[341764024,1731217841011,-500.0,0.00014897,2]
[341764026,1731217841021,-500.0,0.00014897,2]
[341764028,1731217841031,-500.0,0.00014897,2]
[341764030,1731217841040,-500.0,0.00014897,2]
[341764032,1731217841050,-500.0,0.00014897,2]
[341764034,1731217841060,-500.0,0.00014897,2]
[341764036,1731217841070,-500.0,0.00014897,2]
[341764037,1731217841081,-500.0,0.00014897,2]
[341764040,1731217841104,-500.0,0.00014897,2]
[341764042,1731217841126,-500.0,0.00014897,2]
[341764044,1731217841145,-500.0,0.00014897,2]
[341764046,1731217841169,-1659.13,0.00014897,2]
[341764047,1731217841179,-500.0,0.00014897,2]
[341764049,1731217841189,-1659.13,0.00014897,2]
[341764052,1731217841199,-500.0,0.00014897,2]
[341764053,1731217841208,-500.0,0.00014897,2]
[341764055,1731217841218,-500.0,0.00014897,2]
[341764057,1731217841227,-500.0,0.00014897,2]
[341764059,1731217841239,-1057.38,0.00014897,2]
[341764061,1731217841250,-1057.38,0.00014897,2]
[341764063,1731217841261,-1990.33,0.00014897,2]
[341764065,1731217841271,-1990.33,0.00014897,2]
[341764067,1731217841281,-500.0,0.00014897,2]
[341764069,1731217841291,-500.0,0.00014897,2]
[341764071,1731217841301,-500.0,0.00014897,2]
[341764073,1731217841310,-500.0,0.00014897,2]
[341764075,1731217841319,-848.02,0.00014897,2]
[341764077,1731217841329,-848.02,0.00014897,2]
[341764079,1731217841340,-500.0,0.00014897,2]
[341764081,1731217841353,-500.0,0.00014897,2]
[341764083,1731217841364,-500.0,0.00014897,2]
[341764085,1731217841374,-500.0,0.00014897,2]
[341764087,1731217841394,-313.08547727,0.00014897,2]
[341764090,1731217841421,-270.33309733,0.00014897,2]
[341764092,1731217841431,-312.99453468,0.00014897,2]
[341764093,1731217841441,-1164.63,0.00014897,2]
[341764095,1731217841454,-1164.63,0.00014897,2]
[341764098,1731217841485,-1000.73,0.00014897,2]
[341764099,1731217841496,-500.0,0.00014897,2]
[341764102,1731217841507,-500.0,0.00014897,2]
[341764103,1731217841516,-1000.73,0.00014897,2]
[341764106,1731217841526,-312.80478464,0.00014897,2]
[341764107,1731217841541,-500.0,0.00014897,2]
[341764109,1731217841553,-500.0,0.00014897,2]
[341764111,1731217841563,-633.98558962,0.00014897,2]
[341764113,1731217841572,-205.44509832,0.00014897,2]
[341764116,1731217841582,-500.0,0.00014897,2]
[341764117,1731217841592,-500.0,0.00014897,2]
[341764119,1731217841603,-893.53,0.00014897,2]
[341764122,1731217841613,-893.53,0.00014897,2]
[341764124,1731217841623,-312.89345756,0.00014897,2]
[341764125,1731217841644,-1331.14,0.00014897,2]
[341764127,1731217841661,-1331.14,0.00014897,2]
[341764129,1731217841670,-1074.67,0.00014897,2]
[341764131,1731217841680,-1074.67,0.00014897,2]
[341764133,1731217841689,-500.0,0.00014897,2]
[341764135,1731217841699,-500.0,0.00014897,2]
[341764137,1731217841709,-500.0,0.00014897,2]
[341764139,1731217841718,-500.0,0.00014897,2]
[341764141,1731217841728,-500.0,0.00014897,2]
[341764143,1731217841738,-500.0,0.00014897,2]
[341764145,1731217841748,-854.27,0.00014897,2]
[341764147,1731217841757,-854.27,0.00014897,2]
[341764149,1731217841766,-2172.14,0.00014897,2]
[341764151,1731217841775,-2172.14,0.00014897,2]
[341764153,1731217841787,-500.0,0.00014897,2]
[341764155,1731217841806,-500.0,0.00014897,2]
[341764157,1731217841819,-500.0,0.00014897,2]
[341764159,1731217841829,-500.0,0.00014897,2]
[341764161,1731217841840,-935.8,0.00014897,2]
[341764163,1731217841852,-500.0,0.00014897,2]
[341764165,1731217841863,-500.0,0.00014897,2]
[341764167,1731217841873,-500.0,0.00014897,2]
[341764169,1731217841883,-500.0,0.00014897,2]
[341764171,1731217841893,-500.0,0.00014897,2]
[341764173,1731217841902,-500.0,0.00014897,2]
[341764175,1731217841912,-7191.76,0.00014897,2]
[341764177,1731217841922,-500.0,0.00014897,2]
[341764179,1731217841940,-502.18299132,0.00014897,2]
[341764181,1731217841950,-627.79,0.00014897,2]
[341764183,1731217841959,-627.79,0.00014897,2]
[341764185,1731217841969,-979.68,0.00014897,2]
[341764187,1731217841979,-979.68,0.00014897,2]
[341764189,1731217841989,-708.36,0.00014897,2]
[341764191,1731217841999,-708.36,0.00014897,2]
[341764193,1731217842010,-1043.52,0.00014897,2]
[341764195,1731217842020,-1043.52,0.00014897,2]
[341764197,1731217842030,-1878.87,0.00014897,2]
[341764199,1731217842040,-1878.87,0.00014897,2]
[341764201,1731217842050,-863.55,0.00014897,2]
[341764203,1731217842061,-500.0,0.00014897,2]
[341764205,1731217842070,-500.0,0.00014897,2]
[341764207,1731217842081,-725.45,0.00014897,2]
[341764209,1731217842090,-725.45,0.00014897,2]
[341764211,1731217842101,-500.0,0.00014897,2]
[341764213,1731217842111,-500.0,0.00014897,2]
[341764215,1731217842120,-1031.81,0.00014897,2]
[341764217,1731217842130,-1031.81,0.00014897,2]
[341764219,1731217842141,-500.0,0.00014897,2]
[341764221,1731217842150,-500.0,0.00014897,2]
[341764223,1731217842160,-500.0,0.00014897,2]
[341764225,1731217842169,-500.0,0.00014897,2]
[341764227,1731217842179,-11221.24,0.00014897,2]
[341764229,1731217842188,-500.0,0.00014897,2]
[341764231,1731217842198,-500.0,0.00014897,2]
[341764233,1731217842207,-438.72799761,0.00014897,2]
[341764236,1731217842217,-608.03099715,0.00014897,2]
[341764238,1731217842228,-500.0,0.00014897,2]
[341764240,1731217842237,-500.0,0.00014897,2]
[341764242,1731217842247,-500.0,0.00014897,2]
[341764244,1731217842256,-500.0,0.00014897,2]
[341764246,1731217842265,-1973.7,0.00014897,2]
[341764248,1731217842274,-1973.7,0.00014897,2]
[341764250,1731217842283,-500.0,0.00014897,2]
[341764252,1731217842293,-351.28868999,0.00014897,2]
[341764254,1731217842303,-1075.36,0.00014897,2]
[341764256,1731217842312,-500.0,0.00014897,2]
[341764258,1731217842322,-16000.31,0.00014897,2]
[341764261,1731217842331,-500.0,0.00014897,2]
[341764263,1731217842341,-500.0,0.00014897,2]
[341764265,1731217842352,-500.0,0.00014897,2]
[341764267,1731217842362,-500.0,0.00014897,2]
[341764269,1731217842372,-310.60938911,0.00014897,2]
[341764271,1731217842381,-2453.92,0.00014897,2]
[341764273,1731217842391,-2453.92,0.00014897,2]
[341764275,1731217842400,-500.0,0.00014897,2]
[341764277,1731217842410,-500.0,0.00014897,2]
[341764279,1731217842420,-500.0,0.00014897,2]
[341764281,1731217842430,-500.0,0.00014897,2]
[341764283,1731217842439,-6236.13,0.00014897,2]
[341764285,1731217842448,-565.329317,0.00014897,2]
[341764287,1731217842458,-1024.25,0.00014897,2]
[341764289,1731217842468,-1024.25,0.00014897,2]
[341764291,1731217842477,-2117.87,0.00014897,2]
[341764293,1731217842486,-2117.87,0.00014897,2]
[341764295,1731217842496,-500.0,0.00014897,2]
[341764297,1731217842505,-319.98659428,0.00014897,2]
[341764299,1731217842515,-500.0,0.00014897,2]
[341764301,1731217842524,-500.0,0.00014897,2]
[341764303,1731217842533,-500.0,0.00014897,2]
[341764305,1731217842542,-500.0,0.00014897,2]
[341764307,1731217842551,-915.1,0.00014897,2]
[341764309,1731217842560,-507.34150575,0.00014897,2]
[341764311,1731217842570,-1428.28,0.00014897,2]
[341764313,1731217842579,-1428.28,0.00014897,2]
[341764315,1731217842588,-1428.28,0.00014897,2]
[341764317,1731217842598,-708.33,0.00014897,2]
[341764319,1731217842607,-708.33,0.00014897,2]
[341764321,1731217842616,-500.0,0.00014897,2]
[341764323,1731217842625,-500.0,0.00014897,2]
[341764325,1731217842634,-500.0,0.00014897,2]
[341764359,1731217842912,-500.0,0.00014897,2]
[341764361,1731217842927,-5109.98,0.00014897,2]
[341764363,1731217842936,-5109.98,0.00014897,2]
[341764365,1731217842945,-500.0,0.00014897,2]
[341764367,1731217842954,-500.0,0.00014897,2]
[341764369,1731217842963,-5109.98,0.00014897,2]
[341764371,1731217842972,-500.0,0.00014897,2]
[341764373,1731217842982,-500.0,0.00014897,2]
[341764375,1731217842991,-657.88,0.00014897,2]
[341764377,1731217843001,-657.88,0.00014897,2]
[341764379,1731217843011,-649.92,0.00014897,2]
[341764381,1731217843021,-649.92,0.00014897,2]
[341764382,1731217843031,-2378.26,0.00014897,2]
[341764383,1731217843042,-764.36,0.00014897,2]
[341764384,1731217843051,-764.36,0.00014897,2]
[341764386,1731217843063,-1248.03,0.00014897,2]
[341764388,1731217843075,-1248.03,0.00014897,2]
[341764389,1731217843086,-1560.41,0.00014897,2]
[341764390,1731217843097,-30813.63,0.00014897,2]
[341764392,1731217843107,-1560.41,0.00014897,2]
[341764394,1731217843115,-30813.63,0.00014897,2]
[341764396,1731217843125,-1560.41,0.00014897,2]
[341764398,1731217843136,-30813.63,0.00014897,2]
[341764400,1731217843146,-151.0748,0.00014897,2]
[341764402,1731217843155,-154.663546,0.00014897,2]
[341764403,1731217843164,-467.249778,0.00014897,2]
[341764406,1731217843174,-14580.52,0.00014897,2]
[341764408,1731217843185,-625.06,0.00014897,2]
[341764409,1731217843194,-625.06,0.00014897,2]
[341764412,1731217843203,-500.0,0.00014897,2]
[341764413,1731217843213,-500.0,0.00014897,2]
[341764415,1731217843221,-1288.45,0.00014897,2]
[341764417,1731217843231,-1288.45,0.00014897,2]
[341764419,1731217843240,-500.0,0.00014897,2]
[341764421,1731217843249,-500.0,0.00014897,2]
[341764423,1731217843258,-9837.99,0.00014897,2]
[341764425,1731217843266,-9837.99,0.00014897,2]
[341764427,1731217843275,-9837.99,0.00014897,2]
[341764429,1731217843285,-3942.14,0.00014897,2]
[341764431,1731217843295,-500.0,0.00014897,2]
[341764433,1731217843304,-3942.14,0.00014897,2]
[341764435,1731217843313,-500.0,0.00014897,2]
[341764437,1731217843322,-3942.14,0.00014897,2]
[341764439,1731217843332,-3019.72,0.00014897,2]
[341764441,1731217843342,-1424.17,0.00014897,2]
[341764443,1731217843356,-1424.17,0.00014897,2]
[341764445,1731217843366,-500.0,0.00014897,2]
[341764447,1731217843375,-500.0,0.00014897,2]
[341764449,1731217843384,-500.0,0.00014897,2]
[341764451,1731217843393,-12414.0,0.00014897,2]
[341764453,1731217843403,-500.0,0.00014897,2]
[341764455,1731217843412,-7134.08723216,0.00014897,2]
[341764466,1731217843511,-176.72,0.00013641,2]
[341764468,1731217843520,-818.78439753,0.00014897,2]
[341764471,1731217843531,-997.47782057,0.00014897,2]
[341764528,1731217844055,-998.1602755,0.00014897,2]
[341764531,1731217844073,-2465.49027424,0.00014897,2]
[341764532,1731217844082,-6815.94198638,0.00014897,2]
[341764535,1731217844102,-2000.0,0.00014897,2]
[341764538,1731217844120,-1532.84169021,0.00014897,2]
[341764541,1731217844131,-2065.21632341,0.00014897,2]
[341764543,1731217844144,-417.34690117,0.00014897,2]
[341764546,1731217844160,-82.65309883,0.00014897,2]
[341764547,1731217844170,-500.0,0.00014897,2]
[341764550,1731217844180,-500.0,0.00014897,2]
[341764551,1731217844189,-595.78,0.00014897,2]
[341764554,1731217844199,-595.78,0.00014897,2]
[341764556,1731217844208,-5103.31,0.00014897,2]
[341764557,1731217844220,-5103.31,0.00014897,2]
[341764560,1731217844229,-5103.31,0.00014897,2]
[341764561,1731217844238,-500.0,0.00014897,2]
[341764564,1731217844248,-1920.6,0.00014897,2]
[341764565,1731217844257,-7937.1,0.00014897,2]
[341764568,1731217844268,-500.0,0.00014897,2]
[341764569,1731217844277,-1920.6,0.00014897,2]
[341764572,1731217844287,-588.21,0.00014897,2]
[341764573,1731217844296,-3772.96,0.00014897,2]
[341764575,1731217844305,-4378.04,0.00014897,2]
[341764577,1731217844314,-588.21,0.00014897,2]
[341764579,1731217844324,-3772.96,0.00014897,2]
[341764581,1731217844333,-3772.96,0.00014897,2]
[341764583,1731217844343,-6520.86,0.00014897,2]
[341764586,1731217844354,-6520.86,0.00014897,2]
[341764588,1731217844363,-6520.86,0.00014897,2]
[341764589,1731217844373,-934.83,0.00014897,2]
[341764592,1731217844382,-934.83,0.00014897,2]
[341764593,1731217844391,-500.0,0.00014897,2]
[341764596,1731217844400,-500.0,0.00014897,2]
[341764598,1731217844409,-9525.82,0.00014897,2]
[341764599,1731217844418,-500.0,0.00014897,2]
[341764601,1731217844427,-500.0,0.00014897,2]
[341764603,1731217844436,-3506.75,0.00014897,2]
[341764606,1731217844446,-1515.14,0.00014897,2]
[341764608,1731217844455,-1515.14,0.00014897,2]
[341764609,1731217844464,-1515.14,0.00014897,2]
[341764611,1731217844473,-1245.23,0.00014897,2]
[341764614,1731217844483,-1245.23,0.00014897,2]
[341764616,1731217844492,-1245.23,0.00014897,2]
[341764617,1731217844502,-500.0,0.00014897,2]
[341764619,1731217844511,-500.0,0.00014897,2]
[341764622,1731217844520,-3014.12,0.00014897,2]
[341764623,1731217844530,-2259.05,0.00014897,2]
[341764625,1731217844539,-3014.12,0.00014897,2]
[341764627,1731217844549,-2259.05,0.00014897,2]
[341764629,1731217844558,-500.0,0.00014897,2]
[341764632,1731217844567,-500.0,0.00014897,2]
[341764633,1731217844577,-500.0,0.00014897,2]
[341764635,1731217844586,-500.0,0.00014897,2]
[341764637,1731217844596,-500.0,0.00014897,2]
[341764640,1731217844607,-500.0,0.00014897,2]
[341764642,1731217844617,-500.0,0.00014897,2]
[341764644,1731217844627,-2588.32,0.00014897,2]
[341764646,1731217844637,-500.0,0.00014897,2]
[341764648,1731217844647,-500.0,0.00014897,2]
[341764649,1731217844656,-500.0,0.00014897,2]
[341764652,1731217844666,-1920.11,0.00014897,2]
[341764654,1731217844676,-1920.11,0.00014897,2]
[341764656,1731217844686,-549.64,0.00014897,2]
[341764658,1731217844696,-500.0,0.00014897,2]
[341764659,1731217844706,-549.64,0.00014897,2]
[341764662,1731217844716,-500.0,0.00014897,2]
[341764664,1731217844726,-2272.13690117,0.00014897,2]
[341764703,1731217845368,-580.73309883,0.00014897,2]
[341764705,1731217845378,-46.16690117,0.00014897,2]
[341764707,1731217845390,-404.97886773,0.00014897,2]
[341764709,1731217845402,-730.21199972,0.00014897,2]
[341764712,1731217845414,-330.94223138,0.00014897,2]
[341764714,1731217845423,-873.87102459,0.00014897,2]
[341764716,1731217845434,-261.19004478,0.00014897,2]
[341764772,1731217845932,-377.23893063,0.00014897,2]
[341764774,1731217845942,-2296.78893749,0.00014897,2]
[341764777,1731217845954,-348.07106251,0.00014897,2]
[341764779,1731217845964,-2700.07,0.00014897,2]
[341764781,1731217845974,-34.71814883,0.00014897,2]
[341764783,1731217845986,-2610.14185117,0.00014897,2]
[341764786,1731217845996,-2644.86,0.00014897,2]
[341764787,1731217846005,-42.61464474,0.00014897,2]
[341764788,1731217846016,-3071.60139476,0.00014897,2]
[341764814,1731217846444,-3878.6639605,0.00014897,2]
[341764815,1731217846455,-1118.2506253,0.00014897,2]
[341764816,1731217846467,-3979.8191979,0.00014897,2]
[341764817,1731217846478,-1044.32593958,0.00014897,2]
[341764818,1731217846490,-850.48423722,0.00014897,2]
[341764819,1731217846500,-183.53863752,0.00014897,2]
[341764820,1731217846522,-316.46136248,0.00014897,2]
[341764821,1731217846532,-500.0,0.00014897,2]
[341764822,1731217846542,-500.0,0.00014897,2]
[341764823,1731217846552,-51.9228635,0.00014897,2]
[341764824,1731217846605,-448.0771365,0.00014897,2]
[341764825,1731217846616,-500.0,0.00014897,2]
[341764826,1731217846626,-500.0,0.00014897,2]
[341764827,1731217846637,-6992.88,0.00014897,2]
[341764828,1731217846650,-1040.62,0.00014897,2]
[341764829,1731217846660,-1040.62,0.00014897,2]
[341764830,1731217846671,-5134.12,0.00014897,2]
[341764831,1731217846681,-5134.12,0.00014897,2]
[341764832,1731217846691,-5134.12,0.00014897,2]
[341764834,1731217846701,-500.0,0.00014897,2]
[341764836,1731217846710,-500.0,0.00014897,2]
[341764838,1731217846719,-500.0,0.00014897,2]
[341764840,1731217846729,-581.89,0.00014897,2]
[341764842,1731217846739,-500.0,0.00014897,2]
[341764844,1731217846750,-581.89,0.00014897,2]
[341764846,1731217846760,-500.0,0.00014897,2]
[341764849,1731217846770,-500.0,0.00014897,2]
[341764850,1731217846780,-500.0,0.00014897,2]
[341764851,1731217846790,-830.17,0.00014897,2]
[341764852,1731217846801,-830.17,0.00014897,2]
[341764853,1731217846811,-830.17,0.00014897,2]
[341764854,1731217846823,-500.0,0.00014897,2]
[341764855,1731217846833,-500.0,0.00014897,2]
[341764856,1731217846843,-500.0,0.00014897,2]
[341764857,1731217846857,-500.0,0.00014897,2]
[341764858,1731217846868,-2354.21,0.00014897,2]
[341764859,1731217846878,-1342.33,0.00014897,2]
[341764860,1731217846887,-1213.2,0.00014897,2]
[341764861,1731217846897,-1468.74806018,0.00014897,2]
[341764862,1731217846953,-885.46193982,0.00014897,2]
[341764863,1731217846963,-1342.33,0.00014897,2]
[341764864,1731217846972,-2354.21,0.00014897,2]
[341764865,1731217846982,-1342.33,0.00014897,2]
[341764866,1731217846992,-500.0,0.00014897,2]
[341764867,1731217847002,-500.0,0.00014897,2]
[341764868,1731217847012,-649.73,0.00014897,2]
[341764869,1731217847021,-649.73,0.00014897,2]
[341764870,1731217847031,-649.73,0.00014897,2]
[341764871,1731217847041,-500.0,0.00014897,2]
[341764872,1731217847051,-16591.44,0.00014897,2]
[341764873,1731217847061,-500.0,0.00014897,2]
[341764874,1731217847070,-718.97,0.00014897,2]
[341764875,1731217847079,-1418.33,0.00014897,2]
[341764876,1731217847088,-718.97,0.00014897,2]
[341764877,1731217847097,-1418.33,0.00014897,2]
[341764878,1731217847108,-899.68,0.00014897,2]
[341764879,1731217847117,-718.97,0.00014897,2]
[341764880,1731217847130,-1418.33,0.00014897,2]
[341764881,1731217847139,-500.0,0.00014897,2]
[341764882,1731217847149,-500.0,0.00014897,2]
[341764883,1731217847158,-500.0,0.00014897,2]
[341764884,1731217847168,-500.0,0.00014897,2]
[341764885,1731217847178,-500.0,0.00014897,2]
[341764886,1731217847187,-500.0,0.00014897,2]
[341764887,1731217847196,-500.0,0.00014897,2]
[341764888,1731217847207,-500.0,0.00014897,2]
[341764889,1731217847216,-500.0,0.00014897,2]
[341764890,1731217847226,-512.57,0.00014897,2]
[341764891,1731217847235,-512.57,0.00014897,2]
[341764892,1731217847245,-924.74,0.00014897,2]
[341764893,1731217847255,-924.74,0.00014897,2]
[341764894,1731217847264,-14998.40640702,0.00014897,2]
[341764895,1731217847309,-500.0,0.00014896,2]
[341764896,1731217847318,-7770.37768,0.00014897,2]
[341764897,1731217847330,-15020.28591298,0.00014897,2]
[341764898,1731217847340,-924.74,0.00014897,2]
[341764899,1731217847350,-1049.33,0.00014897,2]
[341764900,1731217847359,-5844.87808702,0.00014897,2]
[341764901,1731217847371,-31944.19191298,0.00014897,2]
[341764902,1731217847380,-1049.33,0.00014897,2]
[341764903,1731217847389,-30665.78660697,0.00014897,2]
[341764904,1731217848707,-588.09771953,0.00014896,2]
[341764905,1731217848716,-26.00280203,0.00014896,2]
[341764906,1731217848771,-146.5938928,0.00014896,2]